lending/lending_fUSD_20240509
["ID","MTS","AMOUNT","RATE_DAILY","PERIOD"]
[326674916,1715213470312,-500.0,0.00028493,5]
[326674917,1715213470321,-500.0,0.00028493,5]
[326674918,1715213470331,-1265.07,0.00028493,5]
[326674919,1715213470340,-500.0,0.00028493,5]
[326674920,1715213470350,-500.0,0.00028493,5]
[326674921,1715213470360,-500.0,0.00028493,5]
[326674922,1715213470370,-271.0,0.00028493,5]
[326674923,1715213470380,-500.0,0.00028493,5]
[326674924,1715213470390,-500.0,0.00028493,5]
[326674925,1715213470399,-500.0,0.00028493,5]
[326674926,1715213470421,-500.0,0.00028493,5]
[326674927,1715213470439,-500.0,0.00028493,5]
[326674928,1715213470458,-500.0,0.00028493,5]
[326674929,1715213470480,-500.0,0.00028493,5]
[326674930,1715213470500,-500.0,0.00028493,5]
[326674931,1715213470520,-500.0,0.00028493,5]
[326674932,1715213470537,-500.0,0.00028493,5]
[326674933,1715213470552,-2222.06,0.00028493,5]
[326674934,1715213470571,-1771.49,0.00028493,5]
[326674935,1715213470594,-500.0,0.00028493,5]
[326674936,1715213470608,-500.0,0.00028493,5]
[326674937,1715213470624,-500.0,0.00028493,5]
[326674938,1715213470641,-500.0,0.00028493,5]
[326674939,1715213470658,-500.0,0.00028493,5]
[326674940,1715213470672,-500.0,0.00028493,5]
[326674941,1715213470687,-500.0,0.00028493,5]
[326674942,1715213470705,-510.03,0.00028493,5]
[326674943,1715213470721,-500.0,0.00028493,5]
[326674944,1715213470736,-500.0,0.00028493,5]
[326674945,1715213470753,-500.0,0.00028493,5]
[326674946,1715213470769,-500.0,0.00028493,5]
[326674947,1715213470785,-500.0,0.00028493,5]
[326674948,1715213470802,-500.0,0.00028493,2]
[326674949,1715213470816,-500.0,0.00028493,5]
[326674950,1715213470831,-500.0,0.00028493,5]
[326674951,1715213470848,-560.06,0.00028493,5]
[326674952,1715213470863,-500.0,0.00028493,5]
[326674953,1715213470879,-500.0,0.00028493,5]
[326674954,1715213470895,-500.0,0.00028493,5]
[326674955,1715213470911,-500.0,0.00028493,5]
[326674956,1715213470925,-500.0,0.00028493,5]
[326674957,1715213470940,-500.0,0.00028493,5]
[326674958,1715213470967,-500.0,0.00028493,5]
[326674959,1715213470983,-500.0,0.00028493,5]
[326674960,1715213471002,-500.0,0.00028493,5]
[326674961,1715213471018,-500.0,0.00028493,5]
[326674962,1715213471033,-500.0,0.00028493,5]
[326674963,1715213471049,-500.0,0.00028493,5]
[326674964,1715213471063,-500.0,0.00028493,5]
[326674965,1715213471078,-500.0,0.00028493,5]
[326674966,1715213471093,-500.0,0.00028493,5]
[326674967,1715213471109,-500.0,0.00028493,5]
[326674968,1715213471125,-500.0,0.00028493,5]
[326674969,1715213471144,-500.0,0.00028493,5]
[326674970,1715213471157,-500.0,0.00028493,5]
[326674971,1715213471166,-500.0,0.00028493,5]
[326674972,1715213471176,-500.0,0.00028493,5]
[326674973,1715213471186,-500.0,0.00028493,5]
[326674974,1715213471195,-500.0,0.00028493,5]
[326674975,1715213471205,-500.0,0.00028493,5]
[326674976,1715213471215,-500.0,0.00028493,5]
[326674977,1715213471224,-500.0,0.00028493,5]
[326674978,1715213471234,-1260.07,0.00028493,5]
[326674979,1715213471243,-500.0,0.00028493,5]
[326674980,1715213471253,-500.0,0.00028493,5]
[326674981,1715213471262,-500.0,0.00028493,5]
[326674982,1715213471272,-554.68,0.00028493,5]
[326674983,1715213471281,-500.0,0.00028493,5]
[326674984,1715213471291,-500.0,0.00028493,5]
[326674985,1715213471300,-500.0,0.00028493,5]
[326674986,1715213471310,-500.0,0.00028493,5]
[326674987,1715213471320,-501.68,0.00028493,5]
[326674988,1715213471329,-500.0,0.00028493,5]
[326674989,1715213471339,-500.0,0.00028493,5]
[326674990,1715213471349,-500.0,0.00028493,5]
[326674991,1715213471361,-500.0,0.00028493,5]
[326674992,1715213471371,-500.0,0.00028493,5]
[326674993,1715213471381,-500.0,0.00028493,5]
[326674994,1715213471391,-500.0,0.00028493,5]
[326674995,1715213471400,-500.0,0.00028493,5]
[326674996,1715213471409,-500.0,0.00028493,5]
[326674997,1715213471418,-1132.51,0.00028493,5]
[326674998,1715213471428,-500.0,0.00028493,5]
[326674999,1715213471438,-161.49,0.00028493,5]
[326675000,1715213471447,-500.0,0.00028493,5]
[326675001,1715213471457,-548.29,0.00028493,5]
[326675002,1715213471467,-500.0,0.00028493,5]
[326675003,1715213471785,-500.0,0.00028493,5]
[326675004,1715213471808,-500.0,0.00028493,5]
[326675005,1715213471822,-500.0,0.00028493,5]
[326675006,1715213471837,-500.0,0.00028493,5]
[326675007,1715213471846,-500.0,0.00028493,5]
[326675008,1715213471856,-500.0,0.00028493,5]
[326675009,1715213471865,-500.0,0.00028493,5]
[326675010,1715213471875,-500.0,0.00028493,5]
[326675011,1715213471884,-500.0,0.00028493,5]
[326675012,1715213471894,-500.0,0.00028493,5]
[326675013,1715213471903,-708.55,0.00028493,5]
[326675014,1715213471912,-500.0,0.00028493,5]
[326675015,1715213471922,-1049.69,0.00028493,5]
[326675016,1715213471933,-500.0,0.00028493,5]
[326675017,1715213471942,-500.0,0.00028493,5]
[326675018,1715213471952,-500.0,0.00028493,5]
[326675019,1715213471961,-500.0,0.00028493,5]
[326675020,1715213471971,-500.0,0.00028493,5]
[326675021,1715213471982,-500.0,0.00028493,5]
[326675022,1715213471992,-500.0,0.00028493,5]
[326675023,1715213472003,-500.0,0.00028493,5]
[326675024,1715213472018,-500.0,0.00028493,5]
[326675025,1715213472028,-520.76,0.00028493,5]
[326675026,1715213472038,-500.0,0.00028493,5]
[326675027,1715213472048,-500.0,0.00028493,5]
[326675028,1715213472059,-500.0,0.00028493,5]
[326675029,1715213472068,-500.0,0.00028493,5]
[326675030,1715213472078,-500.0,0.00028493,5]
[326675031,1715213472087,-500.0,0.00028493,5]
[326675032,1715213472097,-500.0,0.00028493,5]
[326675033,1715213472106,-1004.15,0.00028493,5]
[326675034,1715213472115,-500.0,0.00028493,5]
[326675035,1715213472126,-500.0,0.00028493,5]
[326675036,1715213472137,-500.0,0.00028493,5]
[326675037,1715213472147,-500.0,0.00028493,5]
[326675038,1715213472156,-500.0,0.00028493,5]
[326675039,1715213472165,-500.0,0.00028493,5]
[326675040,1715213472175,-500.0,0.00028493,5]
[326675041,1715213472184,-500.0,0.00028493,5]
[326675042,1715213472193,-500.0,0.00028493,5]
[326675043,1715213472202,-500.0,0.00028493,5]
[326675044,1715213472212,-602.85,0.00028493,5]
[326675045,1715213472221,-500.0,0.00028493,5]
[326675046,1715213472231,-500.0,0.00028493,5]
[326675047,1715213472240,-500.0,0.00028493,5]
[326675048,1715213472250,-500.0,0.00028493,5]
[326675049,1715213472260,-500.0,0.00028493,5]
[326675050,1715213472269,-1321.76,0.00028493,5]
[326675051,1715213472280,-500.0,0.00028493,5]
[326675052,1715213472290,-828.58,0.00028493,5]
[326675053,1715213472299,-500.0,0.00028493,5]
[326675054,1715213472308,-500.0,0.00028493,5]
[326675055,1715213472318,-500.0,0.00028493,5]
[326675056,1715213472327,-548.04,0.00028493,5]
[326675057,1715213472337,-1465.91,0.00028493,5]
[326675058,1715213472347,-500.0,0.00028493,5]
[326675059,1715213472356,-500.0,0.00028493,5]
[326675060,1715213472365,-936.66,0.00028493,5]
[326675061,1715213472376,-500.0,0.00028493,5]
[326675062,1715213472386,-500.0,0.00028493,5]
[326675063,1715213472395,-1476.61,0.00028493,5]
[326675064,1715213472405,-500.0,0.00028493,5]
[326675065,1715213472419,-500.0,0.00028493,5]
[326675066,1715213472428,-835.64,0.00028493,5]
[326675067,1715213472438,-500.0,0.00028493,5]
[326675068,1715213472448,-500.0,0.00028493,5]
[326675069,1715213472457,-500.0,0.00028493,5]
[326675070,1715213472467,-500.0,0.00028493,5]
[326675071,1715213472477,-500.0,0.00028493,5]
[326675072,1715213472487,-500.0,0.00028493,5]
[326675073,1715213472496,-500.0,0.00028493,5]
[326675074,1715213472506,-592.9,0.00028493,5]
[326675075,1715213472516,-500.0,0.00028493,5]
[326675076,1715213472526,-634.11,0.00028493,5]
[326675077,1715213472536,-907.61,0.00028493,5]
[326675078,1715213472545,-500.0,0.00028493,5]
[326675079,1715213472555,-3108.04,0.00028493,5]
[326675080,1715213472564,-1504.03,0.00028493,5]
[326675081,1715213472573,-500.0,0.00028493,5]
[326675082,1715213472583,-1175.75,0.00028493,5]
[326675083,1715213472592,-500.0,0.00028493,5]
[326675084,1715213472601,-500.0,0.00028493,5]
[326675085,1715213472611,-775.34,0.00028493,5]
[326675086,1715213472620,-500.0,0.00028493,5]
[326675087,1715213472630,-547.23,0.00028493,5]
[326675088,1715213472639,-500.0,0.00028493,5]
[326675089,1715213472648,-500.0,0.00028493,5]
[326675090,1715213472658,-500.0,0.00028493,5]
[326675091,1715213472667,-764.45,0.00028493,5]
[326675092,1715213472676,-416.68,0.00028493,5]
[326675093,1715213472687,-500.0,0.00028493,5]
[326675094,1715213472696,-500.0,0.00028493,5]
[326675095,1715213472705,-4185.16,0.00028493,5]
[326675096,1715213472715,-936.01,0.00028493,5]
[326675097,1715213472725,-500.0,0.00028493,5]
[326675098,1715213472734,-500.0,0.00028493,5]
[326675099,1715213472744,-500.0,0.00028493,5]
[326675100,1715213472757,-500.0,0.00028493,5]
[326675101,1715213472767,-500.0,0.00028493,5]
[326675102,1715213472776,-500.0,0.00028493,5]
[326675103,1715213472786,-428.9,0.00028493,5]
[326675104,1715213472795,-500.0,0.00028493,5]
[326675105,1715213472804,-867.01,0.00028493,5]
[326675106,1715213472813,-847.73,0.00028493,5]
[326675107,1715213472822,-2639.47,0.00028493,5]
[326675108,1715213472833,-867.83,0.00028493,5]
[326675109,1715213472842,-500.0,0.00028493,5]
[326675110,1715213472852,-500.0,0.00028493,5]
[326675111,1715213472861,-500.0,0.00028493,5]
[326675112,1715213472870,-500.0,0.00028493,5]
[326675113,1715213472880,-2030.64,0.00028493,5]
[326675114,1715213472890,-987.45,0.00028493,5]
[326675115,1715213472899,-500.0,0.00028493,5]
[326675116,1715213472909,-718.89,0.00028493,5]
[326675117,1715213472918,-500.0,0.00028493,5]
[326675118,1715213472927,-184.34,0.00028493,5]
[326675119,1715213472937,-500.0,0.00028493,5]
[326675120,1715213472946,-500.0,0.00028493,5]
[326675121,1715213472957,-500.0,0.00028493,5]
[326675122,1715213472966,-917.61,0.00028493,5]
[326675123,1715213472976,-500.0,0.00028493,5]
[326675124,1715213473000,-500.0,0.00028493,5]
[326675125,1715213473009,-964.57,0.00028493,5]
[326675126,1715213473019,-1046.76,0.00028493,5]
[326675127,1715213473028,-849.09,0.00028493,5]
[326675128,1715213473038,-500.0,0.00028493,5]
[326675129,1715213473047,-500.0,0.00028493,5]
[326675130,1715213473056,-1410.5,0.00028493,5]
[326675131,1715213473066,-500.0,0.00028493,5]
[326675132,1715213473076,-500.0,0.00028493,5]
[326675133,1715213473086,-500.0,0.00028493,5]
[326675134,1715213473096,-500.0,0.00028493,5]
[326675135,1715213473105,-2288.86,0.00028493,5]
[326675136,1715213473114,-515.06,0.00028493,5]
[326675137,1715213473124,-645.6,0.00028493,5]
[326675138,1715213473134,-1124.5,0.00028493,5]
[326675139,1715213473144,-500.0,0.00028493,5]
[326675140,1715213473153,-1294.23,0.00028493,5]
[326675141,1715213473162,-500.0,0.00028493,5]
[326675142,1715213473172,-536.02,0.00028493,5]
[326675143,1715213473181,-500.0,0.00028493,5]
[326675144,1715213473191,-790.32,0.00028493,5]
[326675145,1715213473200,-500.0,0.00028493,5]
[326675146,1715213473210,-1332.47,0.00028493,5]
[326675147,1715213473219,-500.0,0.00028493,5]
[326675148,1715213473229,-846.42,0.00028493,5]
[326675149,1715213473239,-500.0,0.00028493,5]
[326675150,1715213473248,-500.0,0.00028493,5]
[326675151,1715213473258,-500.0,0.00028493,5]
[326675152,1715213473267,-2372.1,0.00028493,5]
[326675153,1715213473276,-355.06028639,0.00028493,5]
[326675154,1715213473286,-2058.74,0.00028493,5]
[326675155,1715213473296,-500.0,0.00028493,5]
[326675156,1715213473305,-500.0,0.00028493,5]
[326675157,1715213473316,-500.0,0.00028493,5]
[326675158,1715213473325,-500.0,0.00028493,5]
[326675159,1715213473335,-500.0,0.00028493,5]
[326675160,1715213473344,-500.0,0.00028493,5]
[326675161,1715213473354,-1331.86,0.00028493,5]
[326675162,1715213473363,-1503.47,0.00028493,5]
[326675163,1715213473373,-3845.46,0.00028493,5]
[326675164,1715213473384,-1671.96,0.00028493,5]
[326675165,1715213473393,-500.0,0.00028493,5]
[326675166,1715213473403,-500.0,0.00028493,5]
[326675167,1715213473412,-848.24,0.00028493,5]
[326675168,1715213473422,-500.0,0.00028493,5]
[326675169,1715213473431,-800.89,0.00028493,5]
[326675170,1715213473442,-1375.15,0.00028493,5]
[326675171,1715213473452,-500.0,0.00028493,5]
[326675172,1715213473461,-151.0,0.00028493,7]
[326675173,1715213473471,-966.06,0.00028493,5]
[326675174,1715213473480,-2764.75,0.00028493,5]
[326675175,1715213473490,-500.0,0.00028493,5]
[326675176,1715213473500,-500.0,0.00028493,5]
[326675177,1715213473510,-500.0,0.00028493,5]
[326675178,1715213473519,-194.21,0.00028493,5]
[326675179,1715213473529,-500.0,0.00028493,5]
[326675180,1715213473538,-1322.99,0.00028493,5]
[326675181,1715213473548,-2062.81,0.00028493,5]
[326675182,1715213473561,-500.0,0.00028493,5]
[326675183,1715213473571,-500.0,0.00028493,5]
[326675184,1715213473581,-500.0,0.00028493,5]
[326675185,1715213473590,-2471.1,0.00028493,5]
[326675186,1715213473601,-500.0,0.00028493,5]
[326675187,1715213473610,-2601.61,0.00028493,5]
[326675188,1715213473620,-771.61,0.00028493,5]
[326675189,1715213473630,-768.52,0.00028493,5]
[326675190,1715213473639,-559.32,0.00028493,5]
[326675191,1715213473648,-877.2,0.00028493,5]
[326675192,1715213473657,-15619.64,0.00028493,5]
[326675193,1715213473667,-500.0,0.00028493,5]
[326675194,1715213473676,-500.0,0.00028493,5]
[326675195,1715213473685,-500.0,0.00028493,5]
[326675196,1715213473695,-500.0,0.00028493,5]
[326675197,1715213473704,-807.0,0.00028493,5]
[326675198,1715213473714,-500.0,0.00028493,5]
[326675199,1715213473723,-500.0,0.00028493,5]
[326675200,1715213473733,-500.0,0.00028493,5]
[326675201,1715213473742,-500.0,0.00028493,5]
[326675202,1715213473753,-555.61,0.00028493,5]
[326675203,1715213473763,-604.58324388,0.00028493,5]
[326675204,1715213473773,-547.18,0.00028493,5]
[326675205,1715213473783,-151.0,0.00028493,7]
[326675206,1715213473793,-697.81,0.00028493,5]
[326675207,1715213473804,-762.94,0.00028493,5]
[326675208,1715213473813,-500.0,0.00028493,5]
[326675209,1715213473823,-758.05,0.00028493,5]
[326675210,1715213473832,-500.0,0.00028493,5]
[326675211,1715213473843,-6825.8984199,0.00028493,5]
[326675212,1715213473870,-1454.1115801,0.00028493,5]
[326675213,1715213473880,-500.0,0.00028493,5]
[326675214,1715213473890,-500.0,0.00028493,5]
[326675215,1715213473899,-500.0,0.00028493,5]
[326675216,1715213473908,-500.0,0.00028493,5]
[326675217,1715213473917,-500.0,0.00028493,5]
[326675218,1715213473926,-500.0,0.00028493,5]
[326675219,1715213473936,-393.77803828,0.00028493,5]
[326675220,1715213473948,-106.22196172,0.00028493,5]
[326675221,1715213473958,-500.0,0.00028493,5]
[326675222,1715213473968,-1754.82,0.00028493,5]
[326675223,1715213473977,-500.0,0.00028493,5]
[326675224,1715213473987,-962.66,0.00028493,5]
[326675225,1715213473998,-500.0,0.00028493,5]
[326675226,1715213474007,-500.0,0.00028493,5]
[326675227,1715213474017,-500.0,0.00028493,5]
[326675228,1715213474026,-561.1,0.00028493,5]
[326675229,1715213474035,-500.0,0.00028493,5]
[326675230,1715213474045,-2459.38,0.00028493,5]
[326675231,1715213474055,-624.6,0.00028493,5]
[326675232,1715213474064,-151.0,0.00028493,7]
[326675233,1715213474074,-1630.16,0.00028493,5]
[326675234,1715213474084,-500.0,0.00028493,5]
[326675235,1715213474093,-780.42,0.00028493,5]
[326675236,1715213474102,-500.0,0.00028493,5]
[326675237,1715213474112,-978.37,0.00028493,5]
[326675238,1715213474122,-500.0,0.00028493,5]
[326675239,1715213474137,-500.0,0.00028493,5]
[326675240,1715213474147,-516.56,0.00028493,5]
[326675241,1715213474157,-359.17,0.00028493,5]
[326675242,1715213474166,-500.0,0.00028493,5]
[326675243,1715213474176,-500.0,0.00028493,5]
[326675244,1715213474185,-500.0,0.00028493,5]
[326675245,1715213474194,-8826.44,0.00028493,5]
[326675246,1715213474203,-500.0,0.00028493,5]
[326675247,1715213474212,-500.0,0.00028493,5]
[326675248,1715213474222,-763.04,0.00028493,5]
[326675249,1715213474231,-747.43,0.00028493,5]
[326675250,1715213474240,-2868.9,0.00028493,5]
[326675251,1715213474250,-500.0,0.00028493,5]
[326675252,1715213474259,-1465.72,0.00028493,5]
[326675253,1715213474269,-500.0,0.00028493,5]
[326675254,1715213474279,-500.0,0.00028493,5]
[326675255,1715213474288,-500.0,0.00028493,5]
[326675256,1715213474297,-524.25,0.00028493,5]
[326675257,1715213474306,-743.96,0.00028493,5]
[326675258,1715213474316,-500.0,0.00028493,5]
[326675259,1715213474325,-1376.58,0.00028493,5]
[326675260,1715213474335,-7562.83,0.00028493,5]
[326675261,1715213474358,-1384.79,0.00028493,5]
[326675262,1715213474367,-734.49,0.00028493,5]
[326675263,1715213474376,-1448.23,0.00028493,5]
[326675264,1715213474386,-500.0,0.00028493,5]
[326675265,1715213474395,-624.95,0.00028493,5]
[326675266,1715213474404,-1651.57,0.00028493,5]
[326675267,1715213474413,-800.56,0.00028493,5]
[326675268,1715213474422,-928.19,0.00028493,5]
[326675269,1715213474431,-500.0,0.00028493,5]
[326675270,1715213474441,-623.48,0.00028493,5]
[326675271,1715213474450,-991.92,0.00028493,5]
[326675272,1715213474459,-899.59,0.00028493,5]
[326675273,1715213474468,-500.0,0.00028493,5]
[326675274,1715213474477,-906.84,0.00028493,5]
[326675275,1715213474486,-1492.97,0.00028493,5]
[326675276,1715213474494,-500.0,0.00028493,5]
[326675277,1715213474503,-1215.98,0.00028493,5]
[326675278,1715213474513,-500.0,0.00028493,5]
[326675279,1715213474522,-151.0,0.00028493,7]
[326675280,1715213474531,-10581.62,0.00028493,5]
[326675281,1715213474541,-557.56,0.00028493,5]
[326675282,1715213474551,-2424.25,0.00028493,5]
[326675283,1715213474560,-500.0,0.00028493,5]
[326675284,1715213474570,-668.82,0.00028493,5]
[326675285,1715213474579,-936.48,0.00028493,5]
[326675286,1715213474588,-500.0,0.00028493,5]
[326675287,1715213474598,-535.06,0.00028493,5]
[326675288,1715213474607,-500.0,0.00028493,2]
[326675289,1715213474616,-522.5,0.00028493,5]
[326675290,1715213474628,-500.0,0.00028493,5]
[326675291,1715213474637,-804.47,0.00028493,5]
[326675292,1715213474646,-500.0,0.00028493,5]
[326675293,1715213474656,-500.24,0.00028493,5]
[326675294,1715213474666,-500.0,0.00028493,5]
[326675295,1715213474675,-161.210737,0.00028493,7]
[326675296,1715213474686,-625.7,0.00028493,5]
[326675297,1715213474695,-500.0,0.00028493,5]
[326675298,1715213474705,-500.0,0.00028493,5]
[326675299,1715213474714,-500.0,0.00028493,5]
[326675300,1715213474723,-161.210737,0.00028493,7]
[326675301,1715213474732,-1246.0,0.0002854,5]
[326675302,1715213474741,-150.0,0.000286,5]
[326675303,1715213474755,-192.3147839,0.0002861,2]
[326675304,1715213474764,-153.67696771,0.00028655,2]
[326675305,1715213474775,-1000.0,0.00028684,10]
[326675306,1715213474784,-1000.0,0.000287,2]
[326675307,1715213474794,-351.0,0.000287,2]
[326675308,1715213474803,-157.050908,0.00028748,20]
[326675309,1715213474812,-150.0,0.00028839,2]
[326675310,1715213474822,-150.0,0.00028844,2]
[326675311,1715213474834,-192.3147839,0.00028868,2]
[326675312,1715213474844,-4800.87630736,0.00028991,2]
[326675313,1715213474853,-362.89032621,0.00028999,2]
[326675314,1715213474863,-500.0,0.00028999,2]
[326675315,1715213474872,-500.0,0.00028999,2]
[326675316,1715213474882,-364.76170098,0.00028999,2]
[326675317,1715213474891,-500.0,0.00028999,2]
[326675318,1715213474900,-500.0,0.00028999,2]
[326675319,1715213474909,-500.0,0.00028999,2]
[326675320,1715213474919,-500.0,0.00028999,2]
[326675321,1715213474929,-500.0,0.00028999,2]
[326675322,1715213474939,-500.0,0.00028999,2]
[326675323,1715213474949,-500.0,0.00028999,2]
[326675324,1715213474958,-500.0,0.00028999,2]
[326675325,1715213474967,-500.0,0.00028999,2]
[326675326,1715213474977,-500.0,0.00028999,2]
[326675327,1715213474986,-500.0,0.00028999,2]
[326675328,1715213474995,-500.0,0.00028999,2]
[326675329,1715213475004,-576.88225866,0.00028999,2]
[326675330,1715213475014,-500.0,0.00028999,2]
[326675331,1715213475023,-500.0,0.00028999,2]
[326675332,1715213475033,-500.0,0.00028999,2]
[326675333,1715213475176,-500.0,0.00028999,2]
[326675334,1715213475186,-500.0,0.00028999,2]
[326675335,1715213475196,-500.0,0.00028999,2]
[326675336,1715213475205,-500.0,0.00028999,2]
[326675337,1715213475215,-500.0,0.00028999,2]
[326675338,1715213475224,-500.0,0.00028999,2]
[326675339,1715213475234,-500.0,0.00028999,2]
[326675340,1715213475243,-500.0,0.00028999,2]
[326675341,1715213475253,-194.71008189,0.00028999,2]
[326675342,1715213475262,-500.0,0.00028999,2]
[326675343,1715213475272,-564.56776386,0.00029,2]
[326675344,1715213475281,-620.34,0.00029041,5]
[326675345,1715213475290,-500.0,0.00029041,5]
[326675346,1715213475300,-500.0,0.00029041,5]
[326675347,1715213475309,-500.0,0.00029041,5]
[326675348,1715213475319,-500.0,0.00029041,5]
[326675349,1715213475328,-500.0,0.00029041,5]
[326675350,1715213475338,-500.0,0.00029041,5]
[326675351,1715213475347,-500.0,0.00029041,5]
[326675352,1715213475357,-500.0,0.00029041,5]
[326675353,1715213475367,-500.0,0.00029041,5]
[326675354,1715213475377,-500.0,0.00029041,5]
[326675355,1715213475387,-500.0,0.00029041,5]
[326675356,1715213475396,-500.0,0.00029041,5]
[326675357,1715213475406,-500.0,0.00029041,5]
[326675358,1715213475415,-500.0,0.00029041,5]
[326675359,1715213475425,-500.0,0.00029041,5]
[326675360,1715213475434,-500.0,0.00029041,5]
[326675361,1715213475443,-463.53,0.00029041,5]
[326675362,1715213475453,-500.0,0.00029041,5]
[326675363,1715213475462,-500.0,0.00029041,5]
[326675364,1715213475471,-500.0,0.00029041,5]
[326675365,1715213475480,-500.0,0.00029041,5]
[326675366,1715213475490,-519.2,0.00029041,5]
[326675367,1715213475499,-500.0,0.00029041,5]
[326675368,1715213475511,-500.0,0.00029041,5]
[326675369,1715213475520,-500.0,0.00029041,5]
[326675370,1715213475529,-500.0,0.00029041,5]
[326675371,1715213475539,-500.0,0.00029041,5]
[326675372,1715213475548,-500.0,0.00029041,5]
[326675373,1715213475558,-500.0,0.00029041,5]
[326675374,1715213475567,-500.0,0.00029041,5]
[326675375,1715213475576,-500.0,0.00029041,5]
[326675376,1715213475586,-500.0,0.00029041,5]
[326675377,1715213475595,-1109.39,0.00029041,5]
[326675378,1715213475604,-500.0,0.00029041,5]
[326675379,1715213475614,-500.0,0.00029041,5]
[326675380,1715213475624,-500.0,0.00029041,5]
[326675381,1715213475634,-500.0,0.00029041,5]
[326675382,1715213475643,-500.0,0.00029041,5]
[326675383,1715213475652,-500.0,0.00029041,5]
[326675384,1715213475662,-500.0,0.00029041,5]
[326675385,1715213475673,-500.0,0.00029041,5]
[326675386,1715213475683,-489.23,0.00029041,5]
[326675387,1715213475693,-500.0,0.00029041,5]
[326675388,1715213475702,-500.0,0.00029041,5]
[326675389,1715213475712,-1392.61,0.00029041,5]
[326675390,1715213475721,-500.0,0.00029041,5]
[326675391,1715213475731,-500.0,0.00029041,5]
[326675392,1715213475740,-500.0,0.00029041,5]
[326675393,1715213475755,-500.0,0.00029041,5]
[326675394,1715213475765,-500.0,0.00029041,5]
[326675395,1715213475774,-892.21,0.00029041,5]
[326675396,1715213475785,-500.0,0.00029041,5]
[326675397,1715213475796,-500.0,0.00029041,5]
[326675398,1715213475806,-677.19,0.00029041,5]
[326675399,1715213475816,-500.0,0.00029041,5]
[326675400,1715213475827,-311.25,0.00029041,5]
[326675401,1715213475839,-500.0,0.00029041,5]
[326675402,1715213475850,-500.0,0.00029041,5]
[326675403,1715213475862,-562.97,0.00029041,5]
[326675404,1715213475872,-500.0,0.00029041,5]
[326675405,1715213475882,-500.0,0.00029041,5]
[326675406,1715213475892,-621.27,0.00029041,5]
[326675407,1715213475901,-642.88,0.00029041,5]
[326675408,1715213475911,-500.0,0.00029041,5]
[326675409,1715213475920,-500.0,0.00029041,5]
[326675410,1715213475930,-500.0,0.00029041,5]
[326675411,1715213475940,-500.0,0.00029041,5]
[326675412,1715213475949,-500.0,0.00029041,5]
[326675413,1715213475959,-500.0,0.00029041,5]
[326675414,1715213475968,-629.47,0.00029041,5]
[326675415,1715213475978,-500.0,0.00029041,5]